bitfinex/quotes_ETHUSD_20230702
["timestamp","ask_amount","ask_price","bid_price","bid_amount"]
[1688256001150,6.78340369,1926.0,1925.6,16.82062063]
[1688256002520,6.78340369,1926.0,1925.6,18.82062063]
[1688256004868,11.97550369,1926.0,1925.6,13.62755063]
[1688256006632,10.38720369,1926.0,1925.6,18.82073063]
[1688256006874,10.38720369,1926.0,1925.7,4.02552184]
[1688256006875,0.00300369,1926.0,1925.7,4.02552184]
[1688256007077,0.00300369,1926.0,1925.9,2.0]
[1688256007368,0.00300369,1926.0,1925.9,14.98092]
[1688256007522,0.00300369,1926.0,1925.9,5.0]
[1688256008174,0.00300369,1926.0,1925.9,10.19237]
[1688256008411,0.00300369,1926.0,1925.9,5.0]
[1688256009105,0.00300369,1926.0,1925.9,10.19237]
[1688256010491,0.00300369,1926.0,1925.9,15.38474]
[1688256011018,0.00300369,1926.0,1925.9,5.0]
[1688256011197,0.00300369,1926.0,1925.9,10.19237]
[1688256011491,0.00300369,1926.0,1925.9,5.0]
[1688256012373,0.00300369,1926.0,1925.9,10.19237]
[1688256012972,0.00300369,1926.0,1925.9,12.79237]
[1688256013899,0.00300369,1926.0,1925.9,7.6]
[1688256015066,0.00300369,1926.0,1925.9,12.79237]
[1688256015270,0.00300369,1926.0,1925.9,17.98474]
[1688256015897,0.00300369,1926.0,1925.9,12.79237]
[1688256018503,0.00300369,1926.0,1925.9,17.98474]
[1688256020203,0.00300369,1926.0,1925.9,7.79237]
[1688256020503,0.00300369,1926.0,1925.9,2.6]
[1688256020886,1.04670206,1926.0,1925.9,2.6]
[1688256021176,0.00300369,1926.0,1925.9,2.6]
[1688256025716,5.19510369,1926.0,1925.9,2.6]
[1688256026236,0.00300369,1926.0,1925.9,2.6]
[1688256026839,5.19510369,1926.0,1925.9,2.6]
[1688256026982,0.00300369,1926.0,1925.9,2.6]
[1688256027182,0.00300369,1926.0,1925.9,7.79237]
[1688256032898,0.00300369,1926.0,1925.9,2.6]
[1688256042654,11.43088406,1926.0,1925.9,2.6]
[1688256043253,14.02693406,1926.0,1925.9,2.6]
[1688256043709,11.43088406,1926.0,1925.9,2.6]
[1688256044423,14.02693406,1926.0,1925.9,2.6]
[1688256044721,11.43088406,1926.0,1925.9,2.6]
[1688256044923,14.02693406,1926.0,1925.9,2.6]
[1688256045111,11.43088406,1926.0,1925.9,2.6]
[1688256045908,14.02693406,1926.0,1925.9,2.6]
[1688256046135,11.43088406,1926.0,1925.9,2.6]
[1688256049216,14.02693406,1926.0,1925.9,2.6]
[1688256051150,14.02693406,1926.0,1925.9,3.6]
[1688256053939,15.37593406,1926.0,1925.9,3.6]
[1688256058440,14.02693406,1926.0,1925.9,3.6]
[1688256064745,15.37293406,1926.0,1925.9,3.6]
[1688256066276,14.02693406,1926.0,1925.9,3.6]
[1688256082791,12.98325369,1926.0,1925.9,3.6]
[1688256083790,0.00300369,1926.0,1925.9,3.6]
[1688256083958,7.79115369,1926.0,1925.9,3.6]
[1688256084157,12.98325369,1926.0,1925.9,3.6]
[1688256087421,0.00300369,1926.0,1925.9,3.6]
[1688256087570,7.79115369,1926.0,1925.9,3.6]
[1688256087772,12.98325369,1926.0,1925.9,3.6]
[1688256088404,14.54617606,1926.0,1925.9,3.6]
[1688256089907,12.98325369,1926.0,1925.9,3.6]
[1688256090069,10.38720369,1926.0,1925.9,3.6]
[1688256119063,12.98325369,1926.0,1925.9,3.6]
[1688256152217,0.00300369,1926.0,1925.9,3.6]
[1688256152516,7.79115369,1926.0,1925.9,3.6]
[1688256152718,8.57526906,1926.0,1925.9,3.6]
[1688256153014,13.76736906,1926.0,1925.9,3.6]
[1688256155015,5.97921906,1926.0,1925.9,3.6]
[1688256155234,5.19510369,1926.0,1925.9,3.6]
[1688256160087,10.38720369,1926.0,1925.9,3.6]
[1688256164812,5.19510369,1926.0,1925.9,3.6]
[1688256165641,10.38720369,1926.0,1925.9,3.6]
[1688256166347,5.19510369,1926.0,1925.9,3.6]
[1688256167049,10.38720369,1926.0,1925.9,3.6]
[1688256168955,5.19510369,1926.0,1925.9,3.6]
[1688256169455,10.38720369,1926.0,1925.9,3.6]
[1688256170013,5.19510369,1926.0,1925.9,3.6]
[1688256170351,10.38720369,1926.0,1925.9,3.6]
[1688256171749,5.19510369,1926.0,1925.9,3.6]
[1688256173427,10.38720369,1926.0,1925.9,3.6]
[1688256173780,5.19510369,1926.0,1925.9,3.6]
[1688256174128,10.38720369,1926.0,1925.9,3.6]
[1688256174732,5.19510369,1926.0,1925.9,3.6]
[1688256175770,10.38720369,1926.0,1925.9,3.6]
[1688256177162,5.19510369,1926.0,1925.9,3.6]
[1688256177569,10.38720369,1926.0,1925.9,3.6]
[1688256178373,5.19510369,1926.0,1925.9,3.6]
[1688256180272,10.38720369,1926.0,1925.9,3.6]
[1688256180772,5.19510369,1926.0,1925.9,3.6]
[1688256181140,10.38720369,1926.0,1925.9,3.6]
[1688256181340,5.19510369,1926.0,1925.9,3.6]
[1688256182142,10.38720369,1926.0,1925.9,3.6]
[1688256182343,11.69051806,1926.0,1925.9,3.6]
[1688256182751,14.28656806,1926.0,1925.9,3.6]
[1688256183157,14.28356437,1926.0,1925.9,3.6]
[1688256184182,14.28648722,1926.0,1925.9,3.6]
[1688256188052,14.28648722,1926.0,1925.5,1.64768691]
[1688256188053,23.79400906,1926.0,1925.5,1.64768691]
[1688256188252,5.471,1925.8,1925.5,1.64768691]
[1688256188556,15.57872,1925.7,1925.5,1.64768691]
[1688256188891,15.56801372,1925.7,1925.5,1.64768691]
[1688256189078,0.00290861,1925.6,1925.5,1.64768691]
[1688256189277,12.98585861,1925.6,1925.5,1.64768691]
[1688256189592,14.54301884,1925.6,1925.5,1.64768691]
[1688256191585,14.55956798,1925.6,1925.5,1.64768691]
[1688256192168,15.89656798,1925.6,1925.5,1.64768691]
[1688256193090,15.89656798,1925.6,1925.5,4.24768691]
[1688256194913,15.89656798,1925.6,1925.5,1.64768691]
[1688256196373,14.55956798,1925.6,1925.5,1.64768691]
[1688256201704,12.98585861,1925.6,1925.5,1.64768691]
[1688256202204,10.38926861,1925.6,1925.5,1.64768691]
[1688256202391,12.98585861,1925.6,1925.5,1.64768691]
[1688256203839,10.38926861,1925.6,1925.5,1.64768691]
[1688256204302,12.98585861,1925.6,1925.5,1.64768691]
[1688256204621,10.38926861,1925.6,1925.5,1.64768691]
[1688256204912,5.19608861,1925.6,1925.5,1.64768691]
[1688256205312,10.38926861,1925.6,1925.5,1.64768691]
[1688256207086,5.19608861,1925.6,1925.5,1.64768691]
[1688256212615,10.38926861,1925.6,1925.5,1.64768691]
[1688256222550,14.28443247,1925.6,1925.5,1.64768691]
[1688256224878,11.68784247,1925.6,1925.5,1.64768691]
[1688256225069,10.38926861,1925.6,1925.5,1.64768691]
[1688256227184,5.19608861,1925.6,1925.5,1.64768691]
[1688256227381,10.38926861,1925.6,1925.5,1.64768691]
[1688256228508,0.00290861,1925.6,1925.5,1.64768691]
[1688256228793,5.19608861,1925.6,1925.5,1.64768691]
[1688256231279,12.98585861,1925.6,1925.5,1.64768691]
[1688256231456,14.28444447,1925.6,1925.5,1.64768691]
[1688256234364,12.98585861,1925.6,1925.5,1.64768691]
[1688256235595,10.38926861,1925.6,1925.5,1.64768691]
[1688256243400,10.38926861,1925.6,1925.5,6.84113691]
[1688256243401,0.00290861,1925.6,1925.5,6.84113691]
[1688256244176,10.38609,1925.7,1925.5,1.64768691]
[1688256245193,0.00317962,1925.6,1925.5,1.64768691]
[1688256245378,5.19635962,1925.6,1925.5,1.64768691]
[1688256245912,10.38953962,1925.6,1925.5,1.64768691]
[1688256252289,10.38697342,1925.6,1925.5,1.64768691]
[1688256252668,11.68531676,1925.6,1925.5,1.64768691]
[1688256253186,10.38636,1925.6,1925.5,1.64768691]
[1688256261018,12.98295,1925.6,1925.5,1.64768691]
[1688256275341,10.38636,1925.6,1925.5,1.64768691]
[1688256275536,12.98295,1925.6,1925.5,1.64768691]
[1688256303102,13.39745112,1925.6,1925.5,1.64768691]
[1688256303301,15.68050115,1925.6,1925.5,1.64768691]
[1688256304994,30.37720299,1925.6,1925.5,0.52506437]
[1688256307373,30.37720299,1925.6,1925.0,1.5511]
[1688256307665,30.37720299,1925.6,1924.7,3.1975]
[1688256307666,12.98572,1925.2,1924.7,3.1975]
[1688256307873,12.98572,1925.2,1924.8,1.5349]
[1688256308277,21.14424184,1925.2,1924.8,1.5349]
[1688256308474,24.10364184,1925.2,1924.8,1.5349]
[1688256308772,24.10364184,1925.2,1924.5,1.9566]
[1688256309075,4.07510232,1925.1,1924.5,1.9566]
[1688256309404,15.58506,1925.0,1924.5,1.9566]
[1688256310271,15.58506,1925.0,1924.5,3.5767]
[1688256311204,15.60160914,1925.0,1924.5,3.5767]
[1688256312104,15.60160914,1925.0,1924.5,4.9167]
[1688256312412,1.56016091,1924.9,1924.5,4.9167]
[1688256312609,12.98847,1924.8,1924.5,4.9167]
[1688256312810,12.98847,1924.8,1924.5,2.9601]
[1688256313375,0.01654914,1924.7,1924.5,1.6201]
[1688256313623,10.39176,1924.6,1924.5,1.6201]
[1688256313909,10.39176,1924.6,1924.4,1.338]
[1688256316324,10.39176,1924.6,1924.5,1.347]
[1688256316612,12.9897,1924.6,1924.5,1.347]
[1688256318804,10.39176,1924.6,1924.5,1.347]
[1688256320194,12.9897,1924.6,1924.4,1.34]
[1688256321328,12.9897,1924.6,1924.5,1.349]
[1688256321514,12.9897,1924.6,1924.4,1.349]
[1688256324947,12.9897,1924.6,1924.5,1.338]
[1688256335709,12.9897,1924.6,1924.4,1.338]
[1688256346982,10.39176,1924.6,1924.4,1.338]
[1688256350812,11.11464912,1924.6,1924.4,1.338]
[1688256352121,11.11464912,1924.6,1924.3,1.344]
[1688256353382,11.11464912,1924.6,1924.4,0.90285794]
[1688256357935,11.11464912,1924.6,1924.3,0.54389314]
[1688256358142,11.11464912,1924.6,1924.3,1.44676446]
[1688256358944,11.11464912,1924.6,1924.3,6.64345446]
[1688256359235,11.11464912,1924.6,1924.4,0.90287132]
[1688256360007,11.11464912,1924.6,1924.3,0.54389314]
[1688256360314,11.11464912,1924.6,1924.3,0.90286978]
[1688256368814,11.11464912,1924.6,1924.3,2.23986978]
[1688256369112,11.11464912,1924.6,1924.3,1.337]
[1688256369849,13.71258912,1924.6,1924.2,10.88942331]
[1688256370211,13.71258912,1924.6,1924.3,0.90292355]
[1688256373140,12.99117,1924.4,1924.0,0.54389314]
[1688256373335,12.99117,1924.4,1924.1,0.90300515]
[1688256373336,13.00771914,1924.4,1924.1,0.90300515]
[1688256373541,13.00771914,1924.4,1923.9,3.17749314]
[1688256373840,13.00771914,1924.4,1924.0,0.90300784]
[1688256374043,1.30077191,1924.3,1924.0,0.90300784]
[1688256374275,10.39392,1924.2,1924.0,0.90300784]
[1688256375371,5.19696,1924.2,1924.0,0.90300784]
[1688256375672,12.9924,1924.2,1924.0,0.90300784]
[1688256376577,10.39392,1924.2,1924.0,0.90300784]
[1688256376753,11.56338919,1924.2,1924.0,0.90300784]
[1688256378166,11.56338919,1924.2,1923.9,0.5517032]
[1688256378569,11.56338919,1924.2,1923.9,0.12714769]
[1688256384896,14.16186919,1924.2,1923.8,0.42284337]
[1688256385088,6.61357692,1924.1,1923.7,1.6132]
[1688256385410,6.61357692,1924.1,1923.7,8.14849]
[1688256386693,11.81096692,1924.1,1923.7,8.14849]
[1688256388435,11.81096692,1924.1,1923.7,8.2765256]
[1688256388833,11.81096692,1924.1,1923.7,3.0782356]
[1688256390837,10.39478,1924.1,1923.7,8.2765356]
[1688256391121,10.39478,1924.1,1923.8,0.90304351]
[1688256392099,10.39478,1924.1,1923.8,6.10105351]
[1688256392304,10.39478,1924.1,1923.8,5.19801]
[1688256396042,10.39478,1924.1,1923.7,6.9394056]
[1688256396204,1.039478,1924.0,1923.7,6.9394056]
[1688256397836,6.237018,1924.0,1923.7,1.7412356]
[1688256398039,1.039478,1924.0,1923.7,6.9394856]
[1688256398543,6.236978,1924.0,1923.7,6.9394856]
[1688256398944,6.236978,1924.0,1923.7,12.1377956]
[1688256399263,1.039478,1924.0,1923.7,12.1377956]
[1688256399423,6.89998,1924.1,1923.7,12.1377956]
[1688256399620,6.91652914,1924.1,1923.7,6.9394856]
[1688256399834,12.11383914,1924.1,1923.7,6.9394856]
[1688256401854,6.91645914,1924.1,1923.7,6.9394856]
[1688256402224,6.91645914,1924.1,1923.7,8.2854856]
[1688256402425,8.59436105,1924.1,1923.7,8.2854856]
[1688256403841,8.59436105,1924.1,1923.7,13.4837956]
[1688256404799,8.59436105,1924.1,1923.7,8.2854856]
[1688256405744,8.59436105,1924.1,1923.7,13.4837956]
[1688256407299,13.77512191,1924.1,1923.7,16.0829456]
[1688256407449,12.09722,1924.1,1923.7,16.0829456]
[1688256410988,6.89991,1924.1,1923.7,16.0829456]
[1688256421206,6.89991,1924.1,1923.7,14.7369456]
[1688256423611,5.19731,1924.1,1923.7,14.7369456]
[1688256426794,5.19731,1924.1,1923.8,0.90312118]
[1688256426984,6.613206,1924.1,1923.9,5.19777]
[1688256427812,6.613206,1924.1,1923.9,10.39554]
[1688256428600,0.40998454,1924.5,1924.0,4.03652184]
[1688256428918,10.39255,1924.5,1924.1,12.99275]
[1688256429120,5.19623,1924.5,1924.1,12.99275]
[1688256429341,10.39251,1924.5,1924.1,12.99275]
[1688256429516,10.39251,1924.5,1924.2,1.346]
[1688256429696,13.334755,1924.5,1924.3,5.19669]
[1688256429896,11.691555,1924.5,1924.3,5.19669]
[1688256430705,11.691555,1924.5,1924.2,6.54293]
[1688256430917,11.691555,1924.5,1924.1,5.19705]
[1688256431091,13.334755,1924.5,1924.0,6.54138]
[1688256431292,1.3334755,1924.4,1924.0,5.19738]
[1688256431510,5.19671,1924.3,1924.0,10.39488]
[1688256431845,1.6432,1924.4,1924.1,1.348]
[1688256431987,1.299045,1924.5,1924.2,12.9924]
[1688256431988,10.3925,1924.5,1924.2,12.9924]
[1688256432319,5.19623,1924.5,1924.2,12.9924]
[1688256432917,4.72893,1924.7,1924.4,14.33792]
[1688256432918,3.6821,1924.7,1924.4,14.33792]
[1688256433118,0.472893,1924.6,1924.4,11.73974]
[1688256433285,0.472893,1924.6,1924.4,10.39274]
[1688256433981,5.668783,1924.6,1924.4,10.39274]
[1688256434222,0.5668783,1924.5,1924.2,11.73768]
[1688256434521,10.9594283,1924.5,1924.2,5.19684]
[1688256434990,10.9594283,1924.5,1924.2,10.3938]
[1688256435185,0.5668783,1924.5,1924.2,12.99228]
[1688256435490,7.219973,1924.6,1924.2,12.99228]
[1688256435491,2.023893,1924.6,1924.2,12.99228]
[1688256436529,7.219813,1924.6,1924.2,12.99228]
[1688256436890,12.415733,1924.6,1924.2,12.99228]
[1688256440230,7.219813,1924.6,1924.2,12.99228]
[1688256443933,0.472893,1924.6,1924.3,1.338]
[1688256444136,2.039293,1924.6,1924.4,5.19642]
[1688256444301,0.472893,1924.6,1924.4,5.19642]
[1688256445251,5.668783,1924.6,1924.4,5.19642]
[1688256447910,5.668783,1924.6,1924.3,5.1965]
[1688256448111,5.668783,1924.6,1924.3,10.39306]
[1688256450511,5.19589,1924.6,1924.3,10.39306]
[1688256454319,5.19589,1924.6,1924.3,12.9914]
[1688256457554,5.19589,1924.6,1924.3,5.1965]
[1688256457856,5.19589,1924.6,1924.3,10.39319]
[1688256458633,10.39178,1924.6,1924.3,10.39319]
[1688256459041,1.039178,1924.5,1924.3,10.39319]
[1688256459228,6.235348,1924.5,1924.3,10.39319]
[1688256462536,1.039178,1924.5,1924.3,10.39319]
[1688256462758,11.97775,1924.6,1924.3,10.39319]
[1688256466873,6.78169,1924.6,1924.3,10.39319]
[1688256467239,6.78169,1924.6,1924.1,1.5134]
[1688256467240,12.98988,1924.6,1924.1,1.5134]
[1688256467446,12.98988,1924.6,1924.1,5.1972]
[1688256467786,1.298988,1924.5,1924.1,10.39443]
[1688256467942,5.19645,1924.4,1924.1,10.39443]
[1688256468338,1.9743,1924.5,1924.1,12.99304]
[1688256468543,2.59777,1924.8,1924.2,1.346]
[1688256468743,8.89864,1924.6,1924.4,5.19639]
[1688256468973,6.605487,1924.6,1924.4,5.19639]
[1688256474180,2.0014,1924.8,1924.4,10.39281]
[1688256474385,7.19682,1924.8,1924.4,12.99102]
[1688256474677,12.39239,1924.8,1924.4,12.99102]
[1688256474882,17.10029691,1924.8,1924.4,12.99102]
[1688256475080,18.79899691,1924.8,1924.4,12.99102]
[1688256475888,21.39666691,1924.8,1924.4,10.39281]
[1688256476351,30.38,1924.9,1924.4,14.33902]
[1688256476682,5.60725383,1925.1,1924.6,1.349]
[1688256476986,10.38998,1925.0,1924.7,5.19547]
[1688256477147,1.038998,1924.9,1924.7,5.19547]
[1688256477347,10.38998,1925.0,1924.7,5.19547]
[1688256477348,5.19499,1925.0,1924.7,5.19547]
[1688256477685,14.18501,1925.1,1924.7,5.19547]
[1688256477895,8.9903,1925.1,1924.7,5.19547]
[1688256478568,16.78224,1925.1,1924.7,5.19547]
[1688256482401,2.0969,1925.1,1924.7,5.19547]
[1688256482601,2.0969,1925.1,1924.7,15.000957]
[1688256482899,7.29154,1925.1,1924.7,15.000957]
[1688256483372,12.48618,1925.1,1924.7,14.32588]
[1688256485167,14.07008,1925.1,1924.7,14.32588]
[1688256489073,12.48618,1925.1,1924.7,14.32588]
[1688256492194,12.48618,1925.1,1924.7,12.98888]
[1688256493184,7.29154,1925.1,1924.7,12.98888]
[1688256495690,12.48618,1925.1,1924.7,12.98888]
[1688256495888,14.148881,1925.1,1924.7,12.98888]
[1688256498706,8.954241,1925.1,1924.7,12.98888]
[1688256498893,2.0969,1925.1,1924.7,12.98888]
[1688256502015,7.29149,1925.1,1924.7,12.98888]
[1688256502716,14.03188,1925.1,1924.7,12.98888]
[1688256504936,8.83729,1925.1,1924.7,12.98888]
[1688256506404,14.03188,1925.1,1924.7,12.98888]
[1688256509708,15.694782,1925.1,1924.7,12.98888]
[1688256517415,15.694782,1925.1,1924.7,5.19547]
[1688256517814,18.292042,1925.1,1924.6,10.39152]
[1688256518235,20.97956384,1925.1,1924.5,5.19606]
[1688256518521,10.39029,1924.9,1924.5,5.19606]
[1688256519558,10.39029,1924.9,1924.5,10.39221]
[1688256527037,12.10329,1924.9,1924.5,10.39221]
[1688256532445,6.90808,1924.9,1924.5,12.99028]
[1688256532976,1.713,1924.9,1924.5,12.99028]
[1688256533184,2.11344914,1925.1,1924.6,1.299028]
[1688256533390,2.11344914,1925.1,1924.7,12.98869]
[1688256533391,7.30808914,1925.1,1924.7,12.98869]
[1688256533881,12.50272914,1925.1,1924.7,12.98869]
[1688256534049,12.50272914,1925.1,1924.7,10.39094]
[1688256534250,15.58171905,1925.1,1924.7,10.39094]
[1688256536375,18.17897905,1925.1,1924.7,10.39094]
[1688256536579,3.68244914,1925.1,1924.7,12.98874]
[1688256536750,0.01654914,1925.1,1924.7,12.98874]
[1688256537146,5.21113914,1925.1,1924.7,12.98874]
[1688256537377,10.40572914,1925.1,1924.7,12.98874]
[1688256540359,3.92644284,1925.3,1924.7,12.98874]
[1688256540566,7.56285284,1925.3,1924.8,2.636874]
[1688256540889,12.75686284,1925.3,1924.9,12.98737]
[1688256545288,10.80796284,1925.3,1924.9,12.98737]
[1688256546756,0.41994284,1925.3,1924.9,12.98737]
[1688256546985,0.41994284,1925.3,1924.9,14.7129244]
[1688256547185,5.19381,1925.4,1924.9,14.7129244]
[1688256547486,10.38775,1925.4,1924.9,14.7129244]
[1688256547696,10.38775,1925.4,1924.9,12.98737]
[1688256548772,12.98461,1925.4,1924.9,12.98737]
[1688256552094,12.98461,1925.4,1924.9,10.38988]
[1688256557380,12.98461,1925.4,1924.9,12.98741]
[1688256562816,14.56281,1925.4,1924.9,14.49601]
[1688256563120,16.27615206,1925.4,1924.9,14.49601]
[1688256564518,16.27615206,1925.4,1924.9,11.89848]
[1688256574120,16.27615206,1925.4,1924.9,14.49601]
[1688256587536,0.54336144,1925.5,1925.1,1.349]
[1688256587743,0.54336144,1925.5,1925.2,10.38844]
[1688256587744,0.41335298,1925.5,1925.2,10.38844]
[1688256587956,44.34988,1925.7,1925.2,12.98557]
[1688256587957,33.9637,1925.7,1925.2,12.98557]
[1688256588149,9.19630259,1925.7,1925.2,14.61947]
[1688256588371,14.38921259,1925.7,1925.2,14.61947]
[1688256589335,16.08776685,1925.7,1925.2,14.61947]
[1688256589858,18.68421685,1925.7,1925.2,14.61947]
[1688256590353,18.68421685,1925.7,1925.2,12.02234]
[1688256591361,18.68421685,1925.7,1925.2,13.37034]
[1688256599287,18.68421685,1925.7,1925.2,12.02234]
[1688256599450,1.86842169,1925.6,1925.2,12.02234]
[1688256599767,10.38702,1925.5,1925.2,12.02234]
[1688256604949,5.19351,1925.5,1925.2,12.02234]
[1688256605149,5.19351,1925.5,1925.2,14.61947]
[1688256605745,7.79351,1925.5,1925.2,14.61947]
[1688256609588,12.98702,1925.5,1925.2,14.61947]
[1688256610692,12.98702,1925.5,1925.2,12.02234]
[1688256633421,12.98702,1925.5,1925.2,10.38844]
[1688256636304,14.709872,1925.5,1925.1,1.349]
[1688256636607,14.709872,1925.5,1924.6,8.19577]
[1688256636608,2.68752184,1925.4,1924.6,8.19577]
[1688256636771,12.98592,1925.2,1924.5,7.55994314]
[1688256636972,1.298592,1925.1,1924.6,0.90276716]
[1688256637194,10.38988,1925.0,1924.6,5.19583]
[1688256637601,12.05348,1925.0,1924.6,5.19583]
[1688256638103,12.05348,1925.0,1924.6,10.39171]
[1688256638274,12.05348,1925.0,1924.6,5.19583]
[1688256638477,13.6484252,1925.0,1924.5,10.39211]
[1688256638774,15.5736252,1925.0,1924.5,6.54304]
[1688256639398,18.1710252,1925.0,1924.5,11.73919]
[1688256641289,18.1710252,1925.0,1924.4,5.19621]
[1688256641290,1.81710252,1924.9,1924.4,5.19621]
[1688256641490,10.39094,1924.8,1924.4,5.19621]
[1688256641693,5.19547,1924.8,1924.4,5.19621]
[1688256642226,5.21201914,1924.8,1924.4,10.39263]
[1688256642423,6.43445931,1924.8,1924.4,10.39263]
[1688256643795,11.62992931,1924.8,1924.4,10.39263]
[1688256644406,11.62992931,1924.8,1924.4,5.19621]
[1688256645933,14.22759931,1924.8,1924.4,5.19621]
[1688256646701,18.26012115,1924.8,1924.1,9.76786]
[1688256646905,1.42275993,1924.7,1924.1,6.76786]
[1688256647133,12.99025,1924.6,1924.1,11.96509]
[1688256647341,12.99025,1924.6,1924.1,10.39429]
[1688256647517,14.63998099,1924.6,1924.1,10.39429]
[1688256647730,16.22268099,1924.6,1924.1,10.39429]
[1688256647905,16.22268099,1924.6,1924.1,12.9929]
[1688256648309,16.22268099,1924.6,1924.1,10.39429]
[1688256649110,14.63998099,1924.6,1924.1,10.39429]
[1688256649334,14.63998099,1924.6,1924.1,12.9929]
[1688256649510,16.33828099,1924.6,1924.1,12.9929]
[1688256649916,13.74023099,1924.6,1924.1,12.9929]
[1688256650847,13.74023099,1924.6,1924.1,10.39429]
[1688256651445,13.74023099,1924.6,1924.1,12.9929]
[1688256652246,16.33817099,1924.6,1924.1,12.9929]
[1688256654435,16.33817099,1924.6,1924.1,10.39429]
[1688256657115,16.33817099,1924.6,1924.1,12.9929]
[1688256658153,16.33817099,1924.6,1924.1,14.6094]
[1688256659145,16.33817099,1924.6,1924.1,12.01079]
[1688256659646,16.33817099,1924.6,1924.1,6.81356]
[1688256660255,16.33817099,1924.6,1924.1,12.01079]
[1688256661851,16.33817099,1924.6,1924.1,6.81356]
[1688256662015,16.33817099,1924.6,1924.0,10.39471]
[1688256662016,1.6338171,1924.5,1924.0,10.39471]
[1688256662216,1.6338171,1924.5,1923.9,5.19755]
[1688256662217,5.19655,1924.4,1923.9,5.19755]
[1688256662447,8.93255,1924.4,1923.9,10.39513]
[1688256662748,8.93255,1924.4,1923.9,6.631364]
[1688256662918,14.12897,1924.4,1923.9,13.374934]
[1688256663553,8.93242,1924.4,1923.9,13.374934]
[1688256663935,14.12884,1924.4,1923.9,13.374934]
[1688256665995,14.12884,1924.4,1923.9,14.54]
[1688256673515,6.18752184,1924.3,1923.7,0.40611335]
[1688256673680,6.18752184,1924.3,1923.5,1.0]
[1688256673681,16.07154,1924.2,1923.5,1.0]
[1688256673975,15.59316,1924.0,1923.5,1.0]
[1688256674175,12.99522,1923.8,1923.5,1.0]
[1688256675177,12.99522,1923.8,1923.5,6.19884]
[1688256676575,12.99522,1923.8,1923.5,11.39769]
[1688256676781,10.39618,1923.8,1923.5,11.39769]
[1688256676982,5.21442914,1923.9,1923.5,12.74569]
[1688256677182,5.1981,1923.8,1923.5,15.34511]
[1688256677385,5.1981,1923.8,1923.5,12.74569]
[1688256679084,10.3962,1923.8,1923.5,12.74569]
[1688256681266,10.3962,1923.8,1923.5,11.39769]
[1688256682358,10.3962,1923.8,1923.5,6.19884]
[1688256684387,14.29638691,1923.8,1923.5,1.0]
[1688256687965,14.31293605,1923.8,1923.5,1.0]
[1688256688170,17.00045789,1923.8,1923.5,1.0]
[1688256697307,10.41268914,1923.8,1923.5,6.19876]
[1688256697479,10.41268914,1923.8,1923.5,11.39761]
[1688256697882,10.41268914,1923.8,1923.5,6.19876]
[1688256700612,13.01170914,1923.8,1923.5,6.19876]
[1688256701813,13.01170914,1923.8,1923.5,7.53676]
[1688256701991,10.41268914,1923.8,1923.5,7.53676]
[1688256705512,1.5722,1924.0,1923.5,8.962451]
[1688256705713,5.19755,1924.0,1923.6,1.346]
[1688256705882,10.3951,1924.0,1923.7,10.39653]
[1688256706083,12.99385,1924.0,1923.7,5.19826]
[1688256706285,14.33481206,1924.0,1923.7,5.19826]
[1688256706481,14.33481206,1924.0,1923.6,13.25504]
[1688256706680,14.33481206,1924.0,1923.6,6.71057]
[1688256708048,15.90911206,1924.0,1923.6,6.71057]
[1688256708568,15.90911206,1924.0,1923.6,11.90915]
[1688256709319,14.56815,1924.0,1923.6,11.90915]
[1688256723243,14.56815,1924.0,1923.6,5.19847]
[1688256724140,14.56815,1924.0,1923.5,11.39743]
[1688256725354,16.68495,1924.0,1923.5,11.39743]
[1688256728360,16.68495,1924.0,1923.5,1.0]
[1688256728361,19.38902098,1924.0,1923.5,1.0]
[1688256728570,1.668495,1923.9,1923.5,1.0]
[1688256728875,12.99521,1923.8,1923.5,1.0]
[1688256732146,15.68273184,1923.8,1923.5,1.0]
[1688256734379,15.69928098,1923.8,1923.5,1.0]
[1688256734582,17.69595258,1923.8,1923.5,1.0]
[1688256736685,20.29595258,1923.8,1923.5,1.0]
[1688256739572,2.68752184,1923.7,1923.5,1.0]
[1688256739758,15.59574,1923.6,1923.5,1.0]
[1688256743870,12.99645,1923.6,1923.5,1.0]
[1688256744070,14.7003021,1923.6,1923.5,1.0]
[1688256746400,17.38782394,1923.6,1923.5,1.0]
[1688256746695,18.73682394,1923.6,1923.5,1.0]
[1688256751273,17.38782394,1923.6,1923.5,1.0]
[1688256752891,4.39137394,1923.6,1923.5,1.0]
[1688256753197,10.48539184,1923.6,1923.5,1.0]
[1688256753373,15.68397184,1923.6,1923.5,1.0]
[1688256758871,17.51297184,1923.6,1923.5,1.0]
[1688256760275,22.71155184,1923.6,1923.5,1.0]
[1688256763779,26.21155184,1923.6,1923.5,1.0]
[1688256764025,29.13676682,1923.6,1923.5,1.0]
[1688256774819,28.63676682,1923.6,1923.5,1.0]
[1688256775687,26.80776682,1923.6,1923.5,1.0]
[1688256775891,18.68397184,1923.6,1923.5,1.0]
[1688256776703,16.08468184,1923.6,1923.5,1.0]
[1688256776901,7.88610184,1923.6,1923.5,2.348]
[1688256777089,5.19858,1923.6,1923.5,2.348]
[1688256777294,10.39716,1923.6,1923.5,2.348]
[1688256777606,12.99645,1923.6,1923.5,2.348]
[1688256787322,14.556016,1923.6,1923.5,2.348]
[1688256788441,12.99645,1923.6,1923.5,2.348]
[1688256790318,15.68397184,1923.6,1923.5,2.348]
[1688256790639,16.16397184,1923.6,1923.5,1.0]
[1688256790816,16.18052098,1923.6,1923.5,1.0]
[1688256802831,15.70052098,1923.6,1923.5,1.0]
[1688256803134,17.53049408,1923.6,1923.5,1.0]
[1688256803534,17.93652416,1923.6,1923.5,1.0]
[1688256810069,10.39716,1923.6,1923.5,1.0]
[1688256810251,12.99645,1923.6,1923.5,1.0]
[1688256821026,15.68397184,1923.6,1923.5,1.0]